[Event "*** Titled Tuesday Blitz"]
[Site "Chess.com"]
[Date "2020.04.07"]
[Round "1"]
[White "Grandmasta23"]
[Black "Lagmantr"]
[Result "0-1"]
[WhiteElo "2386"]
[BlackElo "2740"]
[TimeControl "180+1"]
[EndTime "13:05:16 PDT"]
[Termination "Lagmantr won by checkmate"]

1. e4 {[%clk 0:02:59]} 1... c6 {[%clk 0:03:00.1]} 2. d4 {[%clk 0:02:58.2]} 2...
d5 {[%clk 0:03:00.9]} 3. f3 {[%clk 0:02:58.7]} 3... dxe4 {[%clk 0:03:01.8]} 4.
fxe4 {[%clk 0:02:58.9]} 4... e5 {[%clk 0:03:02.4]} 5. Nf3 {[%clk 0:02:59.5]}
5... exd4 {[%clk 0:03:01.8]} 6. Bc4 {[%clk 0:02:59.7]} 6... Be7 {[%clk
0:02:55.5]} 7. O-O {[%clk 0:02:57.5]} 7... Nf6 {[%clk 0:02:55.4]} 8. Ng5 {[%clk
0:02:40.3]} 8... O-O {[%clk 0:02:54.2]} 9. Nxf7 {[%clk 0:02:35.5]} 9... Rxf7
{[%clk 0:02:54.6]} 10. Bxf7+ {[%clk 0:02:36.4]} 10... Kxf7 {[%clk 0:02:55.5]}
11. e5 {[%clk 0:02:37.3]} 11... Be6 {[%clk 0:02:50.9]} 12. Qh5+ {[%clk
0:02:22.1]} 12... Kg8 {[%clk 0:02:50.7]} 13. exf6 {[%clk 0:02:21.5]} 13... Bxf6
{[%clk 0:02:51.6]} 14. Nd2 {[%clk 0:02:18.1]} 14... Nd7 {[%clk 0:02:50]} 15. Ne4
{[%clk 0:02:13.6]} 15... Bd5 {[%clk 0:02:39.9]} 16. Ng5 {[%clk 0:01:33.4]} 16...
h6 {[%clk 0:02:38.9]} 17. Nh3 {[%clk 0:01:24.1]} 17... Qe8 {[%clk 0:02:37.3]}
18. Qg4 {[%clk 0:01:03.6]} 18... Ne5 {[%clk 0:02:35]} 19. Qg3 {[%clk 0:01:03.3]}
19... Qg6 {[%clk 0:02:26.8]} 20. Qxg6 {[%clk 0:00:42.6]} 20... Nxg6 {[%clk
0:02:27.3]} 21. Bxh6 {[%clk 0:00:43.2]} 21... d3 {[%clk 0:02:27.4]} 22. Bd2
{[%clk 0:00:17.9]} 22... Bxb2 {[%clk 0:02:08]} 23. Rab1 {[%clk 0:00:17]} 23...
Bd4+ {[%clk 0:02:08.5]} 24. Kh1 {[%clk 0:00:17.4]} 24... dxc2 {[%clk 0:02:09.4]}
25. Rxb7 {[%clk 0:00:13.6]} 25... Nh4 {[%clk 0:02:07.9]} 26. Nf4 {[%clk
0:00:11.9]} 26... Rf8 {[%clk 0:02:07.7]} 27. Rc1 {[%clk 0:00:06.4]} 27... Rxf4
{[%clk 0:02:06.8]} 28. Bxf4 {[%clk 0:00:07.3]} 28... Bxg2# {[%clk 0:02:06.9]}
0-1

[Event "*** Titled Tuesday Blitz"]
[Site "Chess.com"]
[Date "2020.04.07"]
[Round "1"]
[White "OparinGrigoriy"]
[Black "dmosesov"]
[Result "1-0"]
[WhiteElo "2980"]
[BlackElo "2486"]
[TimeControl "180+1"]
[EndTime "13:05:20 PDT"]
[Termination "OparinGrigoriy won by resignation"]

1. Nf3 {[%clk 0:02:58.3]} 1... Nf6 {[%clk 0:02:57.8]} 2. g3 {[%clk 0:02:59.2]}
2... d5 {[%clk 0:02:57.2]} 3. Bg2 {[%clk 0:02:59.8]} 3... c6 {[%clk 0:02:57.5]}
4. O-O {[%clk 0:03:00.3]} 4... Bg4 {[%clk 0:02:57.9]} 5. c4 {[%clk 0:03:00.3]}
5... Nbd7 {[%clk 0:02:50.1]} 6. cxd5 {[%clk 0:02:58.4]} 6... cxd5 {[%clk
0:02:50.9]} 7. Nc3 {[%clk 0:02:54.9]} 7... e6 {[%clk 0:02:51]} 8. d3 {[%clk
0:02:54.2]} 8... Bc5 {[%clk 0:02:45.6]} 9. Qb3 {[%clk 0:02:54]} 9... Qb6 {[%clk
0:02:40.1]} 10. Qxb6 {[%clk 0:02:53]} 10... Bxb6 {[%clk 0:02:37.9]} 11. h3
{[%clk 0:02:53.3]} 11... Bh5 {[%clk 0:02:25.7]} 12. g4 {[%clk 0:02:53.1]} 12...
Bg6 {[%clk 0:02:25.5]} 13. Nh4 {[%clk 0:02:53.7]} 13... O-O {[%clk 0:02:18.3]}
14. Na4 {[%clk 0:02:49.3]} 14... h5 {[%clk 0:01:44]} 15. g5 {[%clk 0:02:46.8]}
15... Ne8 {[%clk 0:01:42.5]} 16. Nxb6 {[%clk 0:02:38]} 16... Nxb6 {[%clk
0:01:42.5]} 17. Bf4 {[%clk 0:02:36.6]} 17... Bh7 {[%clk 0:01:34.2]} 18. Rfc1
{[%clk 0:02:36.2]} 18... Nd7 {[%clk 0:01:28.5]} 19. Bg3 {[%clk 0:02:31.5]} 19...
Kh8 {[%clk 0:01:16.1]} 20. Rc3 {[%clk 0:02:27.3]} 20... f6 {[%clk 0:01:10.5]}
21. g6 {[%clk 0:02:26.8]} 21... Bg8 {[%clk 0:01:10.6]} 22. Rac1 {[%clk
0:02:27.3]} 22... e5 {[%clk 0:01:06.6]} 23. f4 {[%clk 0:02:27.7]} 23... Nd6
{[%clk 0:00:54.8]} 24. Rc7 {[%clk 0:02:22.4]} 24... Rad8 {[%clk 0:00:51.2]} 25.
Rf1 {[%clk 0:02:12.1]} 25... Rfe8 {[%clk 0:00:29.7]} 26. fxe5 {[%clk 0:01:56.1]}
26... Nxe5 {[%clk 0:00:30.5]} 27. Nf5 {[%clk 0:01:54.6]} 27... Nxf5 {[%clk
0:00:30.3]} 28. Rxf5 {[%clk 0:01:55.5]} 28... Be6 {[%clk 0:00:18.5]} 29. Rxh5+
{[%clk 0:01:51]} 29... Kg8 {[%clk 0:00:19]} 30. Bxe5 {[%clk 0:01:47.4]} 30...
fxe5 {[%clk 0:00:19]} 31. Rxe5 {[%clk 0:01:48.3]} 1-0

[Event "*** Titled Tuesday Blitz"]
[Site "Chess.com"]
[Date "2020.04.07"]
[Round "1"]
[White "ChadBiryani"]
[Black "BaMBoMaTTo"]
[Result "0-1"]
[WhiteElo "2397"]
[BlackElo "2744"]
[TimeControl "180+1"]
[EndTime "13:05:27 PDT"]
[Termination "BaMBoMaTTo won by resignation"]

1. b3 {[%clk 0:02:57.8]} 1... c5 {[%clk 0:02:58.8]} 2. Bb2 {[%clk 0:02:56.9]}
2... Nc6 {[%clk 0:02:59.3]} 3. e3 {[%clk 0:02:54.9]} 3... e5 {[%clk 0:02:59.6]}
4. Bb5 {[%clk 0:02:53.1]} 4... Nge7 {[%clk 0:02:59.8]} 5. Nf3 {[%clk 0:02:48]}
5... e4 {[%clk 0:03:00]} 6. Ne5 {[%clk 0:02:36.4]} 6... d6 {[%clk 0:03:00.1]} 7.
Nxc6 {[%clk 0:02:35.2]} 7... bxc6 {[%clk 0:03:01]} 8. Be2 {[%clk 0:02:34.2]}
8... Nf5 {[%clk 0:03:01.3]} 9. d3 {[%clk 0:02:02.3]} 9... exd3 {[%clk
0:03:02.2]} 10. Qxd3 {[%clk 0:02:01.4]} 10... Be7 {[%clk 0:02:58.6]} 11. Nd2
{[%clk 0:01:59.4]} 11... Bf6 {[%clk 0:02:43.3]} 12. Bxf6 {[%clk 0:01:46.7]}
12... Qxf6 {[%clk 0:02:44.2]} 13. O-O {[%clk 0:01:47.4]} 13... d5 {[%clk
0:02:37.4]} 14. c3 {[%clk 0:01:47]} 14... a5 {[%clk 0:02:36.1]} 15. e4 {[%clk
0:01:33.1]} 15... Nh4 {[%clk 0:02:07.1]} 16. c4 {[%clk 0:01:18.9]} 16... O-O
{[%clk 0:02:01]} 17. exd5 {[%clk 0:01:10.9]} 17... cxd5 {[%clk 0:02:01.9]} 18.
Qxd5 {[%clk 0:01:05.5]} 18... Bh3 {[%clk 0:01:37.4]} 19. Bf3 {[%clk 0:00:15.9]}
19... Rad8 {[%clk 0:01:35.2]} 20. Qh5 {[%clk 0:00:15.8]} 20... Rxd2 {[%clk
0:01:30.4]} 21. gxh3 {[%clk 0:00:15.7]} 21... Nxf3+ {[%clk 0:01:28.5]} 0-1

[Event "*** Titled Tuesday Blitz"]
[Site "Chess.com"]
[Date "2020.04.07"]
[Round "1"]
[White "SamuelGhimpu2003"]
[Black "deBaller"]
[Result "1-0"]
[WhiteElo "2689"]
[BlackElo "2346"]
[TimeControl "180+1"]
[EndTime "13:05:28 PDT"]
[Termination "SamuelGhimpu2003 won by resignation"]

1. e4 {[%clk 0:03:00.1]} 1... e6 {[%clk 0:02:55.1]} 2. d4 {[%clk 0:02:59]} 2...
d5 {[%clk 0:02:55.4]} 3. Nd2 {[%clk 0:02:59.9]} 3... a6 {[%clk 0:02:54.9]} 4.
Ngf3 {[%clk 0:02:52.6]} 4... c5 {[%clk 0:02:54.5]} 5. exd5 {[%clk 0:02:51.6]}
5... exd5 {[%clk 0:02:54]} 6. dxc5 {[%clk 0:02:52.1]} 6... Bxc5 {[%clk
0:02:54.9]} 7. Nb3 {[%clk 0:02:51.4]} 7... Bb6 {[%clk 0:02:54.8]} 8. Bd3 {[%clk
0:02:50]} 8... Nf6 {[%clk 0:02:54.6]} 9. Qe2+ {[%clk 0:02:46.7]} 9... Be6 {[%clk
0:02:50.1]} 10. Nbd4 {[%clk 0:02:40.6]} 10... O-O {[%clk 0:02:25.4]} 11. Nxe6
{[%clk 0:02:33.2]} 11... fxe6 {[%clk 0:02:26.3]} 12. Qxe6+ {[%clk 0:02:33.6]}
12... Kh8 {[%clk 0:02:24.8]} 13. O-O {[%clk 0:02:34.5]} 13... Nc6 {[%clk
0:02:20.4]} 14. c3 {[%clk 0:02:27.8]} 14... Qc7 {[%clk 0:01:42.2]} 15. Qh3
{[%clk 0:02:13.9]} 15... Ne5 {[%clk 0:01:35.9]} 16. Bf4 {[%clk 0:01:55.7]} 16...
Nxf3+ {[%clk 0:01:33.6]} 17. Qxf3 {[%clk 0:01:56.6]} 17... Qd7 {[%clk
0:01:31.9]} 18. Rae1 {[%clk 0:01:54.6]} 18... Rae8 {[%clk 0:01:29.3]} 19. h3
{[%clk 0:01:40.4]} 19... Qc6 {[%clk 0:01:12.4]} 20. g3 {[%clk 0:01:24.6]} 20...
Ne4 {[%clk 0:01:12.7]} 21. Bxe4 {[%clk 0:01:19.8]} 21... dxe4 {[%clk 0:01:06.8]}
22. Qg4 {[%clk 0:01:19.9]} 22... Re6 {[%clk 0:01:03.9]} 23. Be3 {[%clk
0:01:13.7]} 23... Rg6 {[%clk 0:01:00.7]} 24. Qe2 {[%clk 0:01:12.8]} 24... Rf3
{[%clk 0:00:46.4]} 25. Bxb6 {[%clk 0:01:09.7]} 25... Qxb6 {[%clk 0:00:45.3]} 26.
Qxf3 {[%clk 0:01:05.4]} 1-0

[Event "*** Titled Tuesday Blitz"]
[Site "Chess.com"]
[Date "2020.04.07"]
[Round "1"]
[White "THORK"]
[Black "iaraldinho"]
[Result "0-1"]
[WhiteElo "2311"]
[BlackElo "2643"]
[TimeControl "180+1"]
[EndTime "13:05:34 PDT"]
[Termination "iaraldinho won by resignation"]

1. d4 {[%clk 0:02:59.9]} 1... f5 {[%clk 0:02:59.3]} 2. g4 {[%clk 0:02:59.2]}
2... Nf6 {[%clk 0:02:59.7]} 3. g5 {[%clk 0:02:59]} 3... Ne4 {[%clk 0:02:58.2]}
4. f3 {[%clk 0:02:59.2]} 4... Nd6 {[%clk 0:02:56.3]} 5. h4 {[%clk 0:02:58.2]}
5... g6 {[%clk 0:02:53.2]} 6. c4 {[%clk 0:02:58]} 6... Nf7 {[%clk 0:02:49.7]} 7.
e4 {[%clk 0:02:54.8]} 7... d6 {[%clk 0:02:49.4]} 8. Nc3 {[%clk 0:02:53.5]} 8...
e5 {[%clk 0:02:48.2]} 9. d5 {[%clk 0:02:45.9]} 9... h6 {[%clk 0:02:43.2]} 10.
gxh6 {[%clk 0:02:37.5]} 10... Bxh6 {[%clk 0:02:44.1]} 11. h5 {[%clk 0:02:28.9]}
11... gxh5 {[%clk 0:02:36.1]} 12. Bd3 {[%clk 0:02:13.8]} 12... Bxc1 {[%clk
0:02:33.4]} 13. Qxc1 {[%clk 0:02:13.4]} 13... f4 {[%clk 0:02:33.5]} 14. Nge2
{[%clk 0:02:06.4]} 14... Nd7 {[%clk 0:02:33.1]} 15. Kd2 {[%clk 0:02:05.1]} 15...
Nf6 {[%clk 0:02:27.4]} 16. Qe1 {[%clk 0:02:03]} 16... Qe7 {[%clk 0:02:22.9]} 17.
Qf2 {[%clk 0:02:02.8]} 17... Bd7 {[%clk 0:02:22.2]} 18. b4 {[%clk 0:02:03]}
18... b6 {[%clk 0:02:20]} 19. a4 {[%clk 0:02:02.6]} 19... a5 {[%clk 0:02:18.7]}
20. Nb5 {[%clk 0:01:56.4]} 20... Kd8 {[%clk 0:02:01.9]} 21. c5 {[%clk
0:01:55.3]} 21... dxc5 {[%clk 0:01:57.1]} 22. bxc5 {[%clk 0:01:54.8]} 22... Bxb5
{[%clk 0:01:49]} 23. axb5 {[%clk 0:01:46.4]} 23... Qxc5 {[%clk 0:01:48]} 24.
Qxc5 {[%clk 0:01:44.9]} 24... bxc5 {[%clk 0:01:47.2]} 25. Rhc1 {[%clk
0:01:37.1]} 25... h4 {[%clk 0:01:45.5]} 26. Rxc5 {[%clk 0:01:35.8]} 26... h3
{[%clk 0:01:45.6]} 27. Rcc1 {[%clk 0:01:35.6]} 27... h2 {[%clk 0:01:45]} 28. Rh1
{[%clk 0:01:35.4]} 28... Ng5 {[%clk 0:01:44.3]} 29. Raf1 {[%clk 0:01:34.7]}
29... a4 {[%clk 0:01:43.3]} 30. Kc2 {[%clk 0:01:29.1]} 30... a3 {[%clk
0:01:43.2]} 31. Kb1 {[%clk 0:01:29.3]} 31... a2+ {[%clk 0:01:43.1]} 32. Ka1
{[%clk 0:01:29.7]} 32... Ra3 {[%clk 0:01:43]} 33. Nc1 {[%clk 0:01:28.4]} 33...
Ke7 {[%clk 0:01:42]} 34. Rf2 {[%clk 0:01:27.8]} 34... Rc3 {[%clk 0:01:34.2]} 35.
Kxa2 {[%clk 0:01:12.5]} 35... Rxc1 {[%clk 0:01:32.1]} 36. Rxc1 {[%clk
0:01:12.2]} 36... h1=Q {[%clk 0:01:32.1]} 37. Rxh1 {[%clk 0:01:12.8]} 37... Rxh1
{[%clk 0:01:31.6]} 38. Kb3 {[%clk 0:01:10.6]} 38... Rh3 {[%clk 0:01:30.6]} 39.
Be2 {[%clk 0:01:09.6]} 39... Ngxe4 {[%clk 0:01:29.4]} 40. Rg2 {[%clk 0:01:10.1]}
40... Nxd5 {[%clk 0:01:28.1]} 41. Kb2 {[%clk 0:01:05.6]} 41... Ng3 {[%clk
0:01:27.7]} 42. Bc4 {[%clk 0:01:04]} 42... Ne3 {[%clk 0:01:26.4]} 0-1

[Event "*** Titled Tuesday Blitz"]
[Site "Chess.com"]
[Date "2020.04.07"]
[Round "1"]
[White "IwkooO"]
[Black "SidArun"]
[Result "1-0"]
[WhiteElo "2572"]
[BlackElo "2214"]
[TimeControl "180+1"]
[EndTime "13:05:38 PDT"]
[Termination "IwkooO won by resignation"]

1. e4 {[%clk 0:03:00.9]} 1... c6 {[%clk 0:03:00]} 2. d4 {[%clk 0:03:00.8]} 2...
d5 {[%clk 0:03:00.3]} 3. e5 {[%clk 0:03:01.4]} 3... Bf5 {[%clk 0:03:00]} 4. Nd2
{[%clk 0:03:01.9]} 4... e6 {[%clk 0:02:54.5]} 5. Nb3 {[%clk 0:03:01.8]} 5... Nd7
{[%clk 0:02:52.9]} 6. Nf3 {[%clk 0:03:01.9]} 6... Ne7 {[%clk 0:02:40]} 7. Be2
{[%clk 0:03:01.7]} 7... c5 {[%clk 0:02:39.4]} 8. dxc5 {[%clk 0:02:52.8]} 8...
Nc6 {[%clk 0:02:39.1]} 9. O-O {[%clk 0:02:44.1]} 9... Ndxe5 {[%clk 0:02:36.7]}
10. Nxe5 {[%clk 0:02:42.3]} 10... Nxe5 {[%clk 0:02:36.7]} 11. Bb5+ {[%clk
0:02:39.4]} 11... Nc6 {[%clk 0:02:32.6]} 12. Nd4 {[%clk 0:02:39.5]} 12... Rc8
{[%clk 0:02:15.9]} 13. Nxf5 {[%clk 0:02:33.4]} 13... exf5 {[%clk 0:02:15.8]} 14.
Re1+ {[%clk 0:02:29.2]} 14... Be7 {[%clk 0:02:14.1]} 15. Qe2 {[%clk 0:01:56.5]}
15... Kf8 {[%clk 0:02:12.7]} 16. Be3 {[%clk 0:01:35.5]} 16... d4 {[%clk
0:02:00.8]} 17. Bxc6 {[%clk 0:01:25.1]} 17... dxe3 {[%clk 0:01:59.8]} 18. Rad1
{[%clk 0:00:45.4]} 18... Qc7 {[%clk 0:01:42]} 19. Bd7 {[%clk 0:00:35.8]} 19...
exf2+ {[%clk 0:01:24.1]} 20. Kxf2 {[%clk 0:00:36]} 20... Qf4+ {[%clk 0:01:23.7]}
21. Kg1 {[%clk 0:00:34.9]} 1-0

[Event "*** Titled Tuesday Blitz"]
[Site "Chess.com"]
[Date "2020.04.07"]
[Round "1"]
[White "RD4ever"]
[Black "ehrenfeld"]
[Result "1-0"]
[WhiteElo "2868"]
[BlackElo "2454"]
[TimeControl "180+1"]
[EndTime "13:05:42 PDT"]
[Termination "RD4ever won on time"]

1. e4 {[%clk 0:02:57.8]} 1... e5 {[%clk 0:02:59.3]} 2. Nf3 {[%clk 0:02:57.4]}
2... Nc6 {[%clk 0:02:59.3]} 3. Nc3 {[%clk 0:02:58]} 3... Nf6 {[%clk 0:02:58.6]}
4. Be2 {[%clk 0:02:58.6]} 4... Bc5 {[%clk 0:02:57.1]} 5. Nxe5 {[%clk 0:02:57.8]}
5... Nxe5 {[%clk 0:02:51.7]} 6. d4 {[%clk 0:02:57.5]} 6... Bd6 {[%clk
0:02:51.4]} 7. dxe5 {[%clk 0:02:58]} 7... Bxe5 {[%clk 0:02:51.4]} 8. Nb5 {[%clk
0:02:58.6]} 8... c6 {[%clk 0:00:48.4]} 9. Nd6+ {[%clk 0:02:49.9]} 9... Bxd6
{[%clk 0:00:44]} 10. Qxd6 {[%clk 0:02:50.8]} 10... Nxe4 {[%clk 0:00:34.6]} 11.
Qe5+ {[%clk 0:02:49.7]} 11... Qe7 {[%clk 0:00:34.8]} 12. Qxg7 {[%clk 0:02:50.1]}
12... Qf6 {[%clk 0:00:35.1]} 13. Qxf6 {[%clk 0:02:50.2]} 13... Nxf6 {[%clk
0:00:35.3]} 14. O-O {[%clk 0:02:51.1]} 14... d5 {[%clk 0:00:34.2]} 15. Re1
{[%clk 0:02:45.7]} 15... Be6 {[%clk 0:00:33.3]} 16. Be3 {[%clk 0:02:44]} 16...
Kd7 {[%clk 0:00:32.4]} 17. Bd4 {[%clk 0:02:42.8]} 17... Ke7 {[%clk 0:00:30]} 18.
a4 {[%clk 0:02:39.5]} 18... Rhg8 {[%clk 0:00:29.9]} 19. Ra3 {[%clk 0:02:38.2]}
19... Ne4 {[%clk 0:00:29.4]} 20. f3 {[%clk 0:02:24.4]} 20... Nd6 {[%clk
0:00:20.8]} 21. Bd3 {[%clk 0:02:24.2]} 21... h5 {[%clk 0:00:17.8]} 22. a5 {[%clk
0:02:01.2]} 22... Kd7 {[%clk 0:00:16]} 23. Rb3 {[%clk 0:01:59.6]} 23... a6
{[%clk 0:00:15.7]} 24. Bf2 {[%clk 0:01:52.8]} 24... Nb5 {[%clk 0:00:14.2]} 25.
Re5 {[%clk 0:01:47.6]} 25... Rh8 {[%clk 0:00:12]} 26. Rb4 {[%clk 0:01:45.6]}
26... Rae8 {[%clk 0:00:10.9]} 27. Rh4 {[%clk 0:01:43.5]} 27... f6 {[%clk
0:00:07.5]} 28. Rexh5 {[%clk 0:01:42.7]} 28... Rxh5 {[%clk 0:00:07.2]} 29. Rxh5
{[%clk 0:01:43.6]} 29... Kd6 {[%clk 0:00:06.6]} 30. b4 {[%clk 0:01:38.4]} 1-0

[Event "*** Titled Tuesday Blitz"]
[Site "Chess.com"]
[Date "2020.04.07"]
[Round "1"]
[White "olksuna"]
[Black "IrI_Cheetah"]
[Result "0-1"]
[WhiteElo "2592"]
[BlackElo "2311"]
[TimeControl "180+1"]
[EndTime "13:05:45 PDT"]
[Termination "IrI_Cheetah won by resignation"]

1. d4 {[%clk 0:02:57.2]} 1... Nf6 {[%clk 0:02:58.8]} 2. c4 {[%clk 0:02:57.3]}
2... b6 {[%clk 0:02:59]} 3. Nc3 {[%clk 0:02:56.7]} 3... Bb7 {[%clk 0:02:59.6]}
4. Qc2 {[%clk 0:02:57.2]} 4... e6 {[%clk 0:02:59.7]} 5. e4 {[%clk 0:02:56]} 5...
Bb4 {[%clk 0:02:57.2]} 6. Bd3 {[%clk 0:02:53.4]} 6... Nc6 {[%clk 0:02:51.5]} 7.
Ne2 {[%clk 0:02:52.6]} 7... e5 {[%clk 0:02:48.3]} 8. dxe5 {[%clk 0:02:46.6]}
8... Nxe5 {[%clk 0:02:47.7]} 9. O-O {[%clk 0:02:47.1]} 9... O-O {[%clk 0:02:44]}
10. Bg5 {[%clk 0:02:45.9]} 10... Be7 {[%clk 0:02:36.1]} 11. Rae1 {[%clk
0:02:41.4]} 11... Nfg4 {[%clk 0:02:28.6]} 12. Bf4 {[%clk 0:02:28.7]} 12... Ng6
{[%clk 0:02:10.2]} 13. Bc1 {[%clk 0:02:17.2]} 13... Bd6 {[%clk 0:02:05.9]} 14.
g3 {[%clk 0:02:08.9]} 14... f5 {[%clk 0:01:55.2]} 15. Nd4 {[%clk 0:01:56.8]}
15... f4 {[%clk 0:01:52.6]} 16. Nf5 {[%clk 0:01:52.9]} 16... fxg3 {[%clk
0:01:38.9]} 17. hxg3 {[%clk 0:01:53.8]} 17... Rxf5 {[%clk 0:01:38.4]} 18. exf5
{[%clk 0:01:48.4]} 18... Qh4 {[%clk 0:01:38.5]} 19. f3 {[%clk 0:01:18.4]} 19...
Bc5+ {[%clk 0:01:24.1]} 20. Be3 {[%clk 0:00:59.3]} 20... Qxg3+ {[%clk 0:01:16]}
21. Qg2 {[%clk 0:00:55.2]} 21... Bxe3+ {[%clk 0:01:11.7]} 22. Rxe3 {[%clk
0:00:53.4]} 22... Qxg2+ {[%clk 0:01:11.3]} 23. Kxg2 {[%clk 0:00:53.4]} 23...
Nxe3+ {[%clk 0:01:12.2]} 24. Kf2 {[%clk 0:00:53.5]} 24... Nxf1 {[%clk
0:01:11.9]} 25. fxg6 {[%clk 0:00:52.1]} 25... Nh2 {[%clk 0:01:10.7]} 26. gxh7+
{[%clk 0:00:50.1]} 26... Kh8 {[%clk 0:01:11.1]} 27. Nd5 {[%clk 0:00:41]} 27...
Bxd5 {[%clk 0:01:08.9]} 28. cxd5 {[%clk 0:00:41.5]} 28... Rf8 {[%clk 0:01:09.5]}
29. Be4 {[%clk 0:00:38.8]} 29... Ng4+ {[%clk 0:01:09.8]} 30. Kg3 {[%clk
0:00:38.9]} 30... Nf6 {[%clk 0:01:10.2]} 0-1

[Event "*** Titled Tuesday Blitz"]
[Site "Chess.com"]
[Date "2020.04.07"]
[Round "1"]
[White "Nikolakis2014"]
[Black "Filip_Covic"]
[Result "1-0"]
[WhiteElo "2683"]
[BlackElo "2344"]
[TimeControl "180+1"]
[EndTime "13:05:47 PDT"]
[Termination "Nikolakis2014 won by resignation"]

1. Nf3 {[%clk 0:03:00.9]} 1... Nf6 {[%clk 0:02:59.6]} 2. c4 {[%clk 0:03:00]}
2... e6 {[%clk 0:02:58.6]} 3. g3 {[%clk 0:03:00.1]} 3... Be7 {[%clk 0:02:57.7]}
4. Bg2 {[%clk 0:03:00]} 4... O-O {[%clk 0:02:58.3]} 5. O-O {[%clk 0:02:59.6]}
5... d5 {[%clk 0:02:58.9]} 6. d4 {[%clk 0:02:59.4]} 6... dxc4 {[%clk 0:02:58.9]}
7. Qc2 {[%clk 0:02:58.9]} 7... b5 {[%clk 0:02:54.8]} 8. a4 {[%clk 0:02:58.5]}
8... b4 {[%clk 0:02:54.3]} 9. Nfd2 {[%clk 0:02:58.5]} 9... c6 {[%clk 0:02:49.2]}
10. Nxc4 {[%clk 0:02:58.3]} 10... Bb7 {[%clk 0:02:35.6]} 11. Rd1 {[%clk
0:02:55.8]} 11... Nbd7 {[%clk 0:02:33.9]} 12. Bg5 {[%clk 0:02:52.6]} 12... Qc8
{[%clk 0:01:56.3]} 13. Na5 {[%clk 0:02:41.7]} 13... Nd5 {[%clk 0:01:40.9]} 14.
Bxe7 {[%clk 0:02:38]} 14... Nxe7 {[%clk 0:01:41.8]} 15. Nd2 {[%clk 0:02:37]}
15... Qc7 {[%clk 0:01:39.3]} 16. Ndb3 {[%clk 0:02:28.2]} 16... Rac8 {[%clk
0:01:29]} 17. Rac1 {[%clk 0:02:17.4]} 17... Ba8 {[%clk 0:01:08.2]} 18. e4 {[%clk
0:02:15.5]} 18... e5 {[%clk 0:00:55.2]} 19. d5 {[%clk 0:02:09.9]} 19... Qb6
{[%clk 0:00:42.9]} 20. Nc4 {[%clk 0:01:59.8]} 20... Qb8 {[%clk 0:00:33]} 21. d6
{[%clk 0:01:50.3]} 21... Ng6 {[%clk 0:00:32.7]} 22. Bh3 {[%clk 0:01:50]} 22...
Rfd8 {[%clk 0:00:20.2]} 23. Bxd7 {[%clk 0:01:37.3]} 23... Rxd7 {[%clk
0:00:21.1]} 24. Nc5 {[%clk 0:01:37.5]} 24... Rdd8 {[%clk 0:00:13.7]} 25. Qd2
{[%clk 0:01:33.6]} 25... Bb7 {[%clk 0:00:07.3]} 26. Qxb4 {[%clk 0:01:17.5]} 1-0

[Event "*** Titled Tuesday Blitz"]
[Site "Chess.com"]
[Date "2020.04.07"]
[Round "1"]
[White "annacramling"]
[Black "harvsp123"]
[Result "0-1"]
[WhiteElo "1961"]
[BlackElo "2514"]
[TimeControl "180+1"]
[EndTime "13:05:48 PDT"]
[Termination "harvsp123 won by checkmate"]

1. d4 {[%clk 0:03:00.9]} 1... g6 {[%clk 0:02:59.5]} 2. c4 {[%clk 0:02:59.1]}
2... Bg7 {[%clk 0:02:59.9]} 3. Nc3 {[%clk 0:02:56.2]} 3... d6 {[%clk 0:02:59.3]}
4. e4 {[%clk 0:02:54.5]} 4... e5 {[%clk 0:02:59.2]} 5. Nf3 {[%clk 0:02:51.8]}
5... Nc6 {[%clk 0:02:57.2]} 6. Be3 {[%clk 0:02:51.8]} 6... Bg4 {[%clk
0:02:55.5]} 7. d5 {[%clk 0:02:39.1]} 7... Nd4 {[%clk 0:02:51.8]} 8. Be2 {[%clk
0:02:30.2]} 8... Nxe2 {[%clk 0:02:47.3]} 9. Qxe2 {[%clk 0:02:29.7]} 9... Nf6
{[%clk 0:02:45.5]} 10. h3 {[%clk 0:02:28.5]} 10... Bd7 {[%clk 0:02:45.2]} 11. g4
{[%clk 0:02:24]} 11... c6 {[%clk 0:02:39.4]} 12. O-O-O {[%clk 0:02:07.3]} 12...
cxd5 {[%clk 0:02:32.1]} 13. exd5 {[%clk 0:01:31.5]} 13... Qa5 {[%clk 0:02:21.8]}
14. Nd2 {[%clk 0:01:22.9]} 14... O-O {[%clk 0:02:12]} 15. g5 {[%clk 0:01:05.4]}
15... Nh5 {[%clk 0:02:08.7]} 16. Nde4 {[%clk 0:01:05.4]} 16... b5 {[%clk
0:02:03.8]} 17. cxb5 {[%clk 0:00:46.5]} 17... Rac8 {[%clk 0:01:49.1]} 18. Nxd6
{[%clk 0:00:37.7]} 18... Nf4 {[%clk 0:01:42.4]} 19. Qd2 {[%clk 0:00:31.3]} 19...
Qxa2 {[%clk 0:01:29]} 20. Nxc8 {[%clk 0:00:27]} 20... Rxc8 {[%clk 0:01:29.9]}
21. Qc2 {[%clk 0:00:04.2]} 21... Qa1+ {[%clk 0:01:23.9]} 22. Qb1 {[%clk
0:00:02.8]} 22... Qa5 {[%clk 0:01:24.8]} 23. Bd2 {[%clk 0:00:02.1]} 23... Ne2+
{[%clk 0:01:21.8]} 24. Kc2 {[%clk 0:00:01.7]} 24... Bf5+ {[%clk 0:01:17.8]} 25.
Kb3 {[%clk 0:00:01.4]} 25... Nd4# {[%clk 0:01:18]} 0-1